[Event "*** Titled Tuesday 3|2 Blitz"]
[Site "Chess.com"]
[Date "2016.02.02"]
[Round "1"]
[White "Gabrielian_Artur"]
[Black "Rating-Schmating"]
[Result "1-0"]
[WhiteElo "2483"]
[BlackElo "2155"]
[TimeControl "180+2"]
[EndTime "11:08:52 PST"]
[Termination "Gabrielian_Artur won by checkmate"]

1. Nf3 {[%clk 0:01:35.8]} 1... Nf6 {[%clk 0:03:00.5]} 2. g3 {[%clk 0:01:36.9]}
2... b6 {[%clk 0:03:00.1]} 3. Bg2 {[%clk 0:01:38.4]} 3... Bb7 {[%clk 0:03:01.2]}
4. O-O {[%clk 0:01:40]} 4... Nc6 {[%clk 0:03:01.8]} 5. d4 {[%clk 0:01:40.6]}
5... e6 {[%clk 0:03:02.1]} 6. c4 {[%clk 0:01:42]} 6... Be7 {[%clk 0:03:00.6]} 7.
Nc3 {[%clk 0:01:43]} 7... O-O {[%clk 0:03:01.3]} 8. d5 {[%clk 0:01:44.2]} 8...
exd5 {[%clk 0:03:01.7]} 9. cxd5 {[%clk 0:01:45.3]} 9... Nb8 {[%clk 0:03:01.2]}
10. e4 {[%clk 0:01:46.3]} 10... d6 {[%clk 0:03:00.3]} 11. Nd4 {[%clk 0:01:46.5]}
11... a6 {[%clk 0:03:00.4]} 12. Nf5 {[%clk 0:01:47.6]} 12... Re8 {[%clk
0:03:00.2]} 13. Bg5 {[%clk 0:01:48.3]} 13... Nbd7 {[%clk 0:03:00.6]} 14. Qd4
{[%clk 0:01:47.2]} 14... h6 {[%clk 0:02:53.6]} 15. Nxe7+ {[%clk 0:01:47.9]}
15... Qxe7 {[%clk 0:02:53.6]} 16. Bf4 {[%clk 0:01:49.3]} 16... Ne5 {[%clk
0:02:50]} 17. Rac1 {[%clk 0:01:46.8]} 17... Ng6 {[%clk 0:02:47.6]} 18. Bd2
{[%clk 0:01:47.4]} 18... Qd7 {[%clk 0:02:43.1]} 19. h3 {[%clk 0:01:47.3]} 19...
Rad8 {[%clk 0:02:41.2]} 20. Rfe1 {[%clk 0:01:48.2]} 20... b5 {[%clk 0:02:37.6]}
21. b4 {[%clk 0:01:47.7]} 21... c6 {[%clk 0:02:37.4]} 22. dxc6 {[%clk
0:01:16.7]} 22... Bxc6 {[%clk 0:02:37.8]} 23. Nd5 {[%clk 0:01:18]} 23... Nxd5
{[%clk 0:02:38.1]} 24. exd5 {[%clk 0:01:18.1]} 24... Ba8 {[%clk 0:02:38.8]} 25.
Rxe8+ {[%clk 0:01:18]} 25... Rxe8 {[%clk 0:02:39.5]} 26. Be3 {[%clk 0:01:19.5]}
26... Ne5 {[%clk 0:02:38.6]} 27. Qb6 {[%clk 0:01:17.3]} 27... Nc4 {[%clk
0:02:32.8]} 28. Qxa6 {[%clk 0:01:17.6]} 28... Bb7 {[%clk 0:02:33.5]} 29. Qa7
{[%clk 0:01:12.6]} 29... Ra8 {[%clk 0:02:32.3]} 30. Qd4 {[%clk 0:01:13.1]} 30...
Rxa2 {[%clk 0:02:33.1]} 31. Bf4 {[%clk 0:01:09.6]} 31... f6 {[%clk 0:02:29.7]}
32. Re1 {[%clk 0:01:10.2]} 32... Rb2 {[%clk 0:02:25.4]} 33. Re6 {[%clk
0:01:07.1]} 33... Bc8 {[%clk 0:02:18.2]} 34. Be4 {[%clk 0:00:58.8]} 34... Qd8
{[%clk 0:02:12.8]} 35. Qa7 {[%clk 0:00:44.4]} 35... Qd7 {[%clk 0:01:51.5]} 36.
Qxd7 {[%clk 0:00:39.4]} 36... Bxd7 {[%clk 0:01:52.4]} 37. Re7 {[%clk 0:00:40.9]}
37... Nb6 {[%clk 0:01:47.1]} 38. Bxd6 {[%clk 0:00:40.1]} 38... Re2 {[%clk
0:01:42.5]} 39. Bc5 {[%clk 0:00:40.8]} 39... Rxe4 {[%clk 0:01:24.9]} 40. Rxe4
{[%clk 0:00:40.7]} 40... Nxd5 {[%clk 0:01:26.5]} 41. Rd4 {[%clk 0:00:41]} 41...
Bc6 {[%clk 0:01:26.4]} 42. f4 {[%clk 0:00:41.9]} 42... Kf7 {[%clk 0:01:27.8]}
43. f5 {[%clk 0:00:43]} 43... g6 {[%clk 0:01:22.7]} 44. fxg6+ {[%clk 0:00:43.6]}
44... Kxg6 {[%clk 0:01:23.7]} 45. Kf2 {[%clk 0:00:44.5]} 45... Nc3 {[%clk
0:01:21.2]} 46. Rd8 {[%clk 0:00:42.6]} 46... Ne4+ {[%clk 0:01:20.4]} 47. Ke3
{[%clk 0:00:44]} 47... Nc3 {[%clk 0:01:17.5]} 48. g4 {[%clk 0:00:43]} 48... Bg2
{[%clk 0:01:16.9]} 49. h4 {[%clk 0:00:43.6]} 49... Nd5+ {[%clk 0:01:15.3]} 50.
Kf2 {[%clk 0:00:44.4]} 50... Be4 {[%clk 0:01:13.6]} 51. Kg3 {[%clk 0:00:45]}
51... Nc7 {[%clk 0:01:10]} 52. Rd7 {[%clk 0:00:43.8]} 52... Ne6 {[%clk
0:01:06.8]} 53. h5+ {[%clk 0:00:44.8]} 53... Kg5 {[%clk 0:01:06]} 54. Be3+
{[%clk 0:00:45.4]} 54... Nf4 {[%clk 0:01:05.1]} 55. Bxf4# {[%clk 0:00:45.2]} 1-0

[Event "*** Titled Tuesday 3|2 Blitz"]
[Site "Chess.com"]
[Date "2016.02.02"]
[Round "1"]
[White "Makalexa"]
[Black "Iball95"]
[Result "1-0"]
[WhiteElo "2072"]
[BlackElo "2392"]
[TimeControl "180+2"]
[EndTime "11:08:52 PST"]
[Termination "Makalexa won by checkmate"]

1. e4 {[%clk 0:02:57.2]} 1... c5 {[%clk 0:02:56.2]} 2. Nf3 {[%clk 0:02:54.4]}
2... Nc6 {[%clk 0:02:48.6]} 3. d4 {[%clk 0:02:50]} 3... cxd4 {[%clk 0:02:49.5]}
4. Nxd4 {[%clk 0:02:50.1]} 4... g6 {[%clk 0:02:50.3]} 5. c4 {[%clk 0:02:49.3]}
5... Nf6 {[%clk 0:02:50.1]} 6. Nc3 {[%clk 0:02:43]} 6... d6 {[%clk 0:02:50.7]}
7. Nc2 {[%clk 0:02:37.6]} 7... Bg7 {[%clk 0:02:51.1]} 8. Be3 {[%clk 0:02:37.1]}
8... O-O {[%clk 0:02:52.5]} 9. Be2 {[%clk 0:02:36.1]} 9... Nd7 {[%clk 0:02:53]}
10. Qd2 {[%clk 0:02:32.9]} 10... Nc5 {[%clk 0:02:53.6]} 11. f3 {[%clk
0:02:32.5]} 11... a5 {[%clk 0:02:53.5]} 12. O-O {[%clk 0:02:32.5]} 12... a4
{[%clk 0:02:54.4]} 13. Rfd1 {[%clk 0:02:32.6]} 13... f5 {[%clk 0:02:51.9]} 14.
exf5 {[%clk 0:02:21.5]} 14... Bxf5 {[%clk 0:02:52.3]} 15. Rac1 {[%clk
0:02:21.9]} 15... Qa5 {[%clk 0:02:35.5]} 16. Nd4 {[%clk 0:02:14.3]} 16... Bd7
{[%clk 0:02:25.5]} 17. Qc2 {[%clk 0:02:02]} 17... Rf7 {[%clk 0:02:11.9]} 18. b4
{[%clk 0:01:57.9]} 18... axb3 {[%clk 0:02:11.9]} 19. axb3 {[%clk 0:01:58.6]}
19... Nb4 {[%clk 0:02:04.1]} 20. Qb1 {[%clk 0:01:47.2]} 20... Na2 {[%clk
0:01:36]} 21. Nxa2 {[%clk 0:01:35.6]} 21... Qxa2 {[%clk 0:01:37.9]} 22. b4
{[%clk 0:01:32.3]} 22... Bxd4 {[%clk 0:01:37]} 23. Bxd4 {[%clk 0:01:29.2]} 23...
Nb3 {[%clk 0:01:37.3]} 24. Qd3 {[%clk 0:00:58.6]} 24... Nxc1 {[%clk 0:01:33]}
25. Rxc1 {[%clk 0:00:59.1]} 25... Bf5 {[%clk 0:01:32]} 26. Qe3 {[%clk
0:00:58.9]} 26... e5 {[%clk 0:01:30.7]} 27. Bc3 {[%clk 0:00:56.3]} 27... Qa7
{[%clk 0:01:20.2]} 28. c5 {[%clk 0:00:55.9]} 28... dxc5 {[%clk 0:00:58.2]} 29.
Qxe5 {[%clk 0:00:49.4]} 29... Kf8 {[%clk 0:00:26]} 30. Bc4 {[%clk 0:00:34.5]}
30... cxb4+ {[%clk 0:00:21.6]} 31. Bd4 {[%clk 0:00:35.2]} 31... b6 {[%clk
0:00:22.5]} 32. Qh8+ {[%clk 0:00:28]} 32... Ke7 {[%clk 0:00:23.2]} 33. Qe5+
{[%clk 0:00:28.6]} 33... Kf8 {[%clk 0:00:24.1]} 34. Re1 {[%clk 0:00:23.6]} 34...
Rg7 {[%clk 0:00:06.9]} 35. Qd6+ {[%clk 0:00:21.5]} 35... Re7 {[%clk 0:00:07.6]}
36. Qf6+ {[%clk 0:00:21.9]} 36... Ke8 {[%clk 0:00:06.6]} 37. Qc6+ {[%clk
0:00:16.4]} 37... Bd7 {[%clk 0:00:05.1]} 38. Rxe7+ {[%clk 0:00:15.9]} 38... Kxe7
{[%clk 0:00:07]} 39. Qf6+ {[%clk 0:00:16.8]} 39... Ke8 {[%clk 0:00:08.3]} 40.
Bf7+ {[%clk 0:00:17.5]} 40... Kf8 {[%clk 0:00:09.7]} 41. Bxg6+ {[%clk
0:00:18.2]} 41... Kg8 {[%clk 0:00:10]} 42. Qf7# {[%clk 0:00:19.4]} 1-0

[Event "*** Titled Tuesday 3|2 Blitz"]
[Site "Chess.com"]
[Date "2016.02.02"]
[Round "1"]
[White "davidarenas1224"]
[Black "swayamsm"]
[Result "0-1"]
[WhiteElo "2222"]
[BlackElo "2570"]
[TimeControl "180+2"]
[EndTime "11:08:57 PST"]
[Termination "swayamsm won by resignation"]

1. e3 {[%clk 0:02:54.4]} 1... e5 {[%clk 0:02:58.6]} 2. c4 {[%clk 0:02:52.1]}
2... Nf6 {[%clk 0:02:57.4]} 3. Nc3 {[%clk 0:02:48.8]} 3... Nc6 {[%clk
0:02:56.5]} 4. d3 {[%clk 0:02:36.7]} 4... d5 {[%clk 0:02:55.8]} 5. cxd5 {[%clk
0:02:35.9]} 5... Nxd5 {[%clk 0:02:57.7]} 6. a3 {[%clk 0:02:34.7]} 6... Be7
{[%clk 0:02:56.3]} 7. Nf3 {[%clk 0:02:35.5]} 7... O-O {[%clk 0:02:57.5]} 8. Be2
{[%clk 0:02:36]} 8... Be6 {[%clk 0:02:56.9]} 9. O-O {[%clk 0:02:35.9]} 9... f5
{[%clk 0:02:56.1]} 10. Qc2 {[%clk 0:02:31.9]} 10... Nb6 {[%clk 0:02:53.4]} 11.
b3 {[%clk 0:02:25.3]} 11... Qe8 {[%clk 0:02:53.2]} 12. Bb2 {[%clk 0:02:23.7]}
12... Qf7 {[%clk 0:02:53.2]} 13. Nd2 {[%clk 0:02:21.8]} 13... Rad8 {[%clk
0:02:51.6]} 14. Rfe1 {[%clk 0:02:14.5]} 14... Bf6 {[%clk 0:02:35.3]} 15. Bf1
{[%clk 0:02:13.1]} 15... Kh8 {[%clk 0:02:26.9]} 16. Rac1 {[%clk 0:02:13.3]}
16... Rd7 {[%clk 0:02:27.5]} 17. b4 {[%clk 0:02:14.2]} 17... a6 {[%clk
0:02:23.7]} 18. Na4 {[%clk 0:02:14.5]} 18... Nxa4 {[%clk 0:02:22.9]} 19. Qxa4
{[%clk 0:02:16.1]} 19... Rfd8 {[%clk 0:02:21.8]} 20. b5 {[%clk 0:02:12.9]} 20...
Nb8 {[%clk 0:02:19.8]} 21. Nc4 {[%clk 0:01:56.7]} 21... e4 {[%clk 0:02:11.1]}
22. Bxf6 {[%clk 0:01:54.7]} 22... Qxf6 {[%clk 0:02:11.8]} 23. d4 {[%clk
0:01:54.2]} 23... axb5 {[%clk 0:02:10.9]} 24. Qxb5 {[%clk 0:01:55.2]} 24... c6
{[%clk 0:02:10.1]} 25. Qa5 {[%clk 0:01:51.5]} 25... Bxc4 {[%clk 0:02:10.2]} 26.
Bxc4 {[%clk 0:01:49.2]} 26... h6 {[%clk 0:02:03.3]} 27. Rb1 {[%clk 0:01:48.3]}
27... Rf8 {[%clk 0:01:55.2]} 28. g3 {[%clk 0:01:44]} 28... Re7 {[%clk
0:01:51.5]} 29. Rb6 {[%clk 0:01:35.8]} 29... Rc7 {[%clk 0:01:28.9]} 30. Reb1
{[%clk 0:01:32]} 30... Qe7 {[%clk 0:01:29.4]} 31. Qa7 {[%clk 0:01:30.8]} 31...
f4 {[%clk 0:00:51.7]} 32. Rxb7 {[%clk 0:01:23.8]} 32... fxg3 {[%clk 0:00:37.7]}
33. Rxc7 {[%clk 0:01:03.1]} 33... gxf2+ {[%clk 0:00:36]} 34. Kh1 {[%clk
0:00:56.8]} 34... Qf6 {[%clk 0:00:32.5]} 35. Rf7 {[%clk 0:00:55.7]} 35... Rxf7
{[%clk 0:00:12.7]} 36. Qxf7 {[%clk 0:00:55.7]} 36... Qxf7 {[%clk 0:00:12.3]} 37.
Rxb8+ {[%clk 0:00:53.4]} 37... Kh7 {[%clk 0:00:13.1]} 38. Bf1 {[%clk 0:00:51.7]}
38... Qf3+ {[%clk 0:00:14.2]} 0-1

[Event "*** Titled Tuesday 3|2 Blitz"]
[Site "Chess.com"]
[Date "2016.02.02"]
[Round "1"]
[White "MITerryble"]
[Black "Winehouse83"]
[Result "1-0"]
[WhiteElo "2609"]
[BlackElo "2295"]
[TimeControl "180+2"]
[EndTime "11:09:51 PST"]
[Termination "MITerryble won by resignation"]

1. d4 {[%clk 0:02:58.8]} 1... Nf6 {[%clk 0:02:56.3]} 2. Nf3 {[%clk 0:02:59]}
2... d5 {[%clk 0:02:53.9]} 3. c4 {[%clk 0:02:59.7]} 3... c6 {[%clk 0:02:54.9]}
4. Nc3 {[%clk 0:03:00.2]} 4... dxc4 {[%clk 0:02:55.7]} 5. a4 {[%clk 0:03:00.7]}
5... Bg4 {[%clk 0:02:56]} 6. Ne5 {[%clk 0:02:59.3]} 6... Nbd7 {[%clk 0:02:57.2]}
7. Nxg4 {[%clk 0:02:59.3]} 7... Nxg4 {[%clk 0:02:58.2]} 8. e3 {[%clk 0:02:59.5]}
8... Ngf6 {[%clk 0:02:58]} 9. Bxc4 {[%clk 0:03:00.2]} 9... e6 {[%clk 0:02:59.1]}
10. O-O {[%clk 0:03:00.3]} 10... a5 {[%clk 0:02:59.3]} 11. Qe2 {[%clk
0:03:01.1]} 11... Bb4 {[%clk 0:02:59.7]} 12. Rd1 {[%clk 0:02:59.9]} 12... Qe7
{[%clk 0:02:54.5]} 13. e4 {[%clk 0:03:00]} 13... e5 {[%clk 0:02:55]} 14. d5
{[%clk 0:03:01.2]} 14... h6 {[%clk 0:02:51.2]} 15. dxc6 {[%clk 0:02:37.1]} 15...
bxc6 {[%clk 0:02:51.1]} 16. Na2 {[%clk 0:02:37.5]} 16... Bc5 {[%clk 0:02:49.1]}
17. Bd2 {[%clk 0:02:35.4]} 17... O-O {[%clk 0:02:48.1]} 18. Rac1 {[%clk
0:02:34.7]} 18... Rfb8 {[%clk 0:02:42.8]} 19. b3 {[%clk 0:02:35.8]} 19... Nf8
{[%clk 0:02:41.6]} 20. Bc3 {[%clk 0:02:29.9]} 20... Ng6 {[%clk 0:02:39.3]} 21.
g3 {[%clk 0:02:30.8]} 21... Rd8 {[%clk 0:02:18.7]} 22. Rxd8+ {[%clk 0:02:29]}
22... Rxd8 {[%clk 0:01:57.8]} 23. Kg2 {[%clk 0:02:03.5]} 23... Ra8 {[%clk
0:01:52.6]} 24. Rd1 {[%clk 0:02:03.3]} 24... Nd7 {[%clk 0:01:44.8]} 25. Qg4
{[%clk 0:02:01.4]} 25... Ndf8 {[%clk 0:01:42.3]} 26. h4 {[%clk 0:01:55.3]} 26...
Qf6 {[%clk 0:01:34]} 27. Qf5 {[%clk 0:01:47]} 27... Ne6 {[%clk 0:01:11]} 28. h5
{[%clk 0:01:44.7]} 28... Ne7 {[%clk 0:00:56]} 29. Qxf6 {[%clk 0:01:36.6]} 29...
gxf6 {[%clk 0:00:56.6]} 30. Rd7 {[%clk 0:01:38.2]} 30... Kf8 {[%clk 0:00:53.8]}
31. Nc1 {[%clk 0:01:16.5]} 31... Ke8 {[%clk 0:00:53.1]} 32. Rd1 {[%clk
0:01:16.9]} 32... Bb6 {[%clk 0:00:52.5]} 33. Ne2 {[%clk 0:01:11]} 33... Rd8
{[%clk 0:00:51.5]} 34. Rxd8+ {[%clk 0:01:11.8]} 34... Kxd8 {[%clk 0:00:51.6]}
35. f4 {[%clk 0:01:13.7]} 35... Bc7 {[%clk 0:00:49.1]} 36. Kf3 {[%clk
0:01:07.9]} 36... exf4 {[%clk 0:00:49.1]} 37. gxf4 {[%clk 0:01:01.8]} 37... f5
{[%clk 0:00:46.6]} 38. Bf6 {[%clk 0:00:42.2]} 38... fxe4+ {[%clk 0:00:42.3]} 39.
Kxe4 {[%clk 0:00:44.1]} 39... Kd7 {[%clk 0:00:42.4]} 40. Bxe6+ {[%clk
0:00:28.1]} 40... Kxe6 {[%clk 0:00:40.9]} 41. Bxe7 {[%clk 0:00:28.5]} 41... f5+
{[%clk 0:00:41.6]} 42. Kf3 {[%clk 0:00:27.5]} 42... Kxe7 {[%clk 0:00:42.3]} 43.
Nd4 {[%clk 0:00:29.2]} 43... Kf6 {[%clk 0:00:40.9]} 44. Nxc6 {[%clk 0:00:30.4]}
44... Ke6 {[%clk 0:00:42]} 45. b4 {[%clk 0:00:23.3]} 45... axb4 {[%clk
0:00:41.8]} 46. Nxb4 {[%clk 0:00:25.2]} 46... Kd6 {[%clk 0:00:38.3]} 47. Nc2
{[%clk 0:00:24.4]} 47... Bb6 {[%clk 0:00:38.4]} 48. Ne3 {[%clk 0:00:25.6]} 48...
Ke6 {[%clk 0:00:39.2]} 49. Nc4 {[%clk 0:00:25.6]} 49... Ba7 {[%clk 0:00:40.2]}
50. a5 {[%clk 0:00:25.1]} 50... Kd5 {[%clk 0:00:41.3]} 51. Ne3+ {[%clk
0:00:26.1]} 51... Ke6 {[%clk 0:00:40.9]} 52. a6 {[%clk 0:00:25.9]} 52... Bb6
{[%clk 0:00:40.7]} 53. Ke2 {[%clk 0:00:27.1]} 53... Ba7 {[%clk 0:00:36.6]} 54.
Kd3 {[%clk 0:00:28.2]} 54... Bb8 {[%clk 0:00:32.5]} 55. Kc4 {[%clk 0:00:26]}
55... Kf6 {[%clk 0:00:31.7]} 56. Kb5 {[%clk 0:00:24.7]} 56... Bxf4 {[%clk
0:00:29.2]} 57. Nd5+ {[%clk 0:00:24.7]} 57... Ke6 {[%clk 0:00:30.4]} 58. Nxf4+
{[%clk 0:00:26.6]} 1-0

[Event "*** Titled Tuesday 3|2 Blitz"]
[Site "Chess.com"]
[Date "2016.02.02"]
[Round "1"]
[White "Jahonas"]
[Black "Boryboy"]
[Result "0-1"]
[WhiteElo "2158"]
[BlackElo "2489"]
[TimeControl "180+2"]
[EndTime "11:10:25 PST"]
[Termination "Boryboy won by resignation"]

1. d4 {[%clk 0:02:59.9]} 1... e6 {[%clk 0:02:59]} 2. Nf3 {[%clk 0:02:59.9]} 2...
Nf6 {[%clk 0:02:58.4]} 3. c3 {[%clk 0:03:00.9]} 3... c5 {[%clk 0:02:59]} 4. Bf4
{[%clk 0:03:00.2]} 4... Nc6 {[%clk 0:02:59.4]} 5. e3 {[%clk 0:03:01.1]} 5... b6
{[%clk 0:02:58]} 6. Be2 {[%clk 0:02:59.3]} 6... Bb7 {[%clk 0:02:58.7]} 7. O-O
{[%clk 0:03:00.3]} 7... Be7 {[%clk 0:02:59.3]} 8. Nbd2 {[%clk 0:03:01.1]} 8...
d6 {[%clk 0:02:56.9]} 9. h3 {[%clk 0:03:02]} 9... h6 {[%clk 0:02:57.3]} 10. Bh2
{[%clk 0:03:01.8]} 10... Qc7 {[%clk 0:02:56.8]} 11. dxc5 {[%clk 0:03:02.1]}
11... bxc5 {[%clk 0:02:56.9]} 12. Nc4 {[%clk 0:03:02.6]} 12... Rd8 {[%clk
0:02:57.9]} 13. Qc2 {[%clk 0:02:58.1]} 13... O-O {[%clk 0:02:54]} 14. Rfd1
{[%clk 0:02:58.3]} 14... Na5 {[%clk 0:02:54.7]} 15. Nxa5 {[%clk 0:02:50.8]}
15... Qxa5 {[%clk 0:02:56.6]} 16. Nd2 {[%clk 0:02:51.3]} 16... d5 {[%clk
0:02:56.6]} 17. a3 {[%clk 0:02:44.5]} 17... Qb6 {[%clk 0:02:57.3]} 18. b4 {[%clk
0:02:42.9]} 18... Ba8 {[%clk 0:02:51.7]} 19. Nb3 {[%clk 0:02:31.1]} 19... Rc8
{[%clk 0:02:48.2]} 20. Qb2 {[%clk 0:02:14.1]} 20... Ne4 {[%clk 0:02:46.7]} 21.
Bf3 {[%clk 0:01:18.8]} 21... Nxc3 {[%clk 0:01:45.5]} 22. Qxc3 {[%clk 0:01:16.9]}
22... cxb4 {[%clk 0:01:44.6]} 23. Qd4 {[%clk 0:01:16]} 23... bxa3 {[%clk
0:01:45.5]} 24. Qxb6 {[%clk 0:01:09.7]} 24... axb6 {[%clk 0:01:46.5]} 25. Be5
{[%clk 0:01:06.5]} 25... Bc6 {[%clk 0:01:38.8]} 26. Bd4 {[%clk 0:00:57.9]} 26...
Ba4 {[%clk 0:01:38.2]} 27. Rdb1 {[%clk 0:00:57.6]} 27... b5 {[%clk 0:01:39.3]}
28. Bd1 {[%clk 0:00:55.7]} 28... f6 {[%clk 0:01:23]} 29. Rc1 {[%clk 0:00:52.3]}
29... Rc4 {[%clk 0:01:16.9]} 30. Na5 {[%clk 0:00:32.4]} 30... Rxc1 {[%clk
0:01:15.7]} 31. Rxc1 {[%clk 0:00:32.9]} 31... Bxd1 {[%clk 0:01:06]} 32. Rxd1
{[%clk 0:00:32.8]} 32... Rc8 {[%clk 0:01:06.8]} 33. Rb1 {[%clk 0:00:30.6]} 33...
a2 {[%clk 0:01:00.9]} 34. Rxb5 {[%clk 0:00:27.6]} 34... Rc1+ {[%clk 0:00:54.3]}
35. Kh2 {[%clk 0:00:27.9]} 35... a1=Q {[%clk 0:00:55.5]} 36. Bxa1 {[%clk
0:00:28.8]} 36... Rxa1 {[%clk 0:00:57.4]} 37. Nc6 {[%clk 0:00:29.8]} 37... Bd6+
{[%clk 0:00:58.5]} 38. g3 {[%clk 0:00:30.9]} 38... Rc1 {[%clk 0:00:57.4]} 39.
Nd4 {[%clk 0:00:31.1]} 39... Kf7 {[%clk 0:00:58.3]} 40. Rb7+ {[%clk 0:00:31.5]}
40... Rc7 {[%clk 0:00:59.2]} 41. Rb6 {[%clk 0:00:32.8]} 41... Bc5 {[%clk
0:00:58.5]} 42. Rb2 {[%clk 0:00:19.7]} 42... Bxd4 {[%clk 0:00:58.7]} 43. exd4
{[%clk 0:00:21.2]} 43... Rc4 {[%clk 0:00:58.7]} 44. Rd2 {[%clk 0:00:21.7]} 44...
Ke7 {[%clk 0:01:00]} 45. Kg2 {[%clk 0:00:23]} 45... Kd6 {[%clk 0:01:01.4]} 46.
Kf3 {[%clk 0:00:24.4]} 46... e5 {[%clk 0:01:02.3]} 47. dxe5+ {[%clk 0:00:25.6]}
47... fxe5 {[%clk 0:01:04.2]} 48. Ra2 {[%clk 0:00:27]} 48... Rc3+ {[%clk
0:01:02.9]} 49. Ke2 {[%clk 0:00:27.7]} 49... e4 {[%clk 0:01:04]} 50. Ra7 {[%clk
0:00:28.3]} 50... Rc7 {[%clk 0:01:04.6]} 51. Ra6+ {[%clk 0:00:29.6]} 51... Ke5
{[%clk 0:01:05.9]} 52. Rg6 {[%clk 0:00:30.4]} 52... Kd4 {[%clk 0:01:06.1]} 53.
Rd6 {[%clk 0:00:28.3]} 53... Ra7 {[%clk 0:01:06.8]} 54. Kf1 {[%clk 0:00:28.7]}
54... Kc4 {[%clk 0:01:07.3]} 55. h4 {[%clk 0:00:28.5]} 55... d4 {[%clk
0:01:08.5]} 56. g4 {[%clk 0:00:28.7]} 56... Kd3 {[%clk 0:01:08.8]} 57. Kg2
{[%clk 0:00:27.2]} 57... Kc3 {[%clk 0:01:04.9]} 58. Kg3 {[%clk 0:00:27.3]} 58...
d3 {[%clk 0:01:06.4]} 59. Kf4 {[%clk 0:00:28.1]} 59... Ra4 {[%clk 0:00:59.9]}
60. Ke3 {[%clk 0:00:28.4]} 60... Ra1 {[%clk 0:00:53.6]} 61. Rc6+ {[%clk
0:00:29]} 61... Kb4 {[%clk 0:00:54.5]} 62. f3 {[%clk 0:00:25.9]} 62... Re1+
{[%clk 0:00:53.8]} 63. Kf2 {[%clk 0:00:09.4]} 63... d2 {[%clk 0:00:52.3]} 64.
Rd6 {[%clk 0:00:06.2]} 64... e3+ {[%clk 0:00:51.8]} 0-1